bitfinex/quotes_ETHUSD_20240823
["timestamp","ask_amount","ask_price","bid_price","bid_amount"]
[1724452747843,3.57719,2795.5,2794.2,23.47877]
[1724452747844,4.83384741,2795.5,2794.8,19.84]
[1724452748028,3.57823,2794.7,2794.2,7.44]
[1724452748212,3.57823,2794.7,2794.2,19.84]
[1724452748843,3.57794,2794.9,2794.2,19.84]
[1724452749495,7.15599,2794.9,2794.2,19.84]
[1724452749714,9.8917,2795.4,2794.3,0.07156303]
[1724452749918,9.8917,2795.4,2794.4,19.84]
[1724452750215,3.57782,2795.0,2794.4,19.84]
[1724452750408,3.57767,2795.2,2794.4,19.84]
[1724452750611,9.8917,2795.4,2794.4,19.84]
[1724452750836,3.57782,2795.0,2794.4,19.84]
[1724452751906,3.57798,2794.9,2794.4,19.84]
[1724452752304,6.57699,2795.7,2794.5,7.75114966]
[1724452752509,3.57731,2795.4,2794.5,7.1915]
[1724452753136,3.57657,2796.0,2794.7,3.57813]
[1724452753332,3.57657,2796.0,2794.8,11.13593391]
[1724452753515,3.57657,2796.0,2794.9,0.55964966]
[1724452753738,3.57675,2795.9,2794.9,0.55964966]
[1724452754307,7.15321,2796.0,2794.9,0.55964966]
[1724452754549,7.15321,2796.0,2794.8,13.54566]
[1724452754550,3.57671,2795.9,2794.8,13.54566]
[1724452754734,3.57658,2796.0,2795.0,0.55953447]
[1724452754955,3.57714,2795.6,2794.8,6.9677]
[1724452755320,3.57725,2795.5,2794.8,6.9677]
[1724452755522,3.57714,2795.6,2794.8,6.9677]
[1724452755934,3.57715,2795.6,2794.6,0.55959066]
[1724452756258,7.15479,2795.4,2794.6,0.55959066]
[1724452756562,3.57761,2795.2,2794.6,0.55959066]
[1724452756853,3.57738,2795.4,2794.6,0.55959066]
[1724452757010,7.15479,2795.4,2794.6,0.55959066]
[1724452757211,3.57743,2795.3,2794.5,9.9677]
[1724452758363,3.57789,2795.0,2794.2,6.9677]
[1724452758930,3.57789,2795.0,2794.2,7.52729066]
[1724452759116,3.57789,2795.0,2794.2,6.9677]
[1724452759667,8.41101741,2795.6,2794.0,0.55959066]
[1724452759870,7.1329,2795.0,2793.8,0.55959066]
[1724452760164,3.57827,2794.7,2793.9,0.55959066]
[1724452760456,3.57827,2794.7,2793.7,0.55959066]
[1724452760641,3.57827,2794.7,2793.8,0.55959066]
[1724452760843,3.57827,2794.7,2793.7,0.55959066]
[1724452761032,3.57794,2794.9,2793.8,3.57934]
[1724452761218,3.57794,2794.9,2793.8,4.13902057]
[1724452761542,3.57794,2794.9,2793.8,3.57927]
[1724452761543,7.15598,2794.9,2793.8,3.57927]
[1724452761724,3.57821,2794.7,2793.8,0.55975057]
[1724452762059,3.57821,2794.7,2793.7,3.55975057]
[1724452762210,3.57794,2794.9,2793.7,7.13919057]
[1724452762417,3.57814,2794.8,2793.7,3.55975057]
[1724452762685,3.57794,2794.9,2793.7,3.55975057]
[1724452762957,3.57794,2794.9,2793.8,3.57934]
[1724452763310,7.1329,2795.0,2793.9,3.57921]
[1724452763532,7.1329,2795.0,2794.0,3.57908]
[1724452763713,10.71078,2795.0,2793.8,4.13900057]
[1724452763913,10.71078,2795.0,2793.9,3.57922]
[1724452764377,10.71078,2795.0,2793.7,3.0]
[1724452764378,3.57807,2794.8,2793.7,3.0]
[1724452764569,3.57807,2794.8,2793.8,0.55973451]
[1724452764859,3.57821,2794.7,2793.9,19.84]
[1724452765059,7.15651,2794.7,2793.9,19.84]
[1724452765216,3.57833,2794.6,2793.9,19.84]
[1724452765558,3.57859,2794.4,2793.9,19.84]
[1724452765764,3.57859,2794.4,2793.5,14.4077]
[1724452765765,3.57859,2794.4,2794.0,19.84]
[1724452765981,10.71136,2794.5,2794.0,19.84]
[1724452766549,14.28991,2794.5,2794.0,19.84]
[1724452766779,3.57859,2794.4,2794.0,19.84]
[1724452767578,3.5786,2794.4,2794.0,19.84]
[1724452769865,7.15725,2794.4,2794.0,19.84]
[1724452770032,3.5786,2794.4,2794.0,19.84]
[1724452770566,3.5786,2794.4,2793.6,19.84]
[1724452772321,3.57893,2794.2,2793.7,19.84]
[1724452772854,3.5792,2794.0,2793.6,19.84]
[1724452773049,3.62626417,2794.7,2792.5,6.8862]
[1724452773050,3.57995,2793.4,2792.5,6.8862]
[1724452773260,3.58001,2793.3,2792.5,6.8862]
[1724452773568,3.57999,2793.4,2792.5,6.8862]
[1724452774166,3.57964,2793.6,2792.5,6.8862]
[1724452774510,3.57975,2793.5,2792.5,6.8862]
[1724452774664,3.57964,2793.6,2792.5,6.6362]
[1724452775569,7.15937,2793.6,2792.5,6.6362]
[1724452775968,3.57964,2793.6,2792.6,0.40974193]
[1724452776437,6.7683,2793.9,2792.6,3.99063193]
[1724452776569,3.57921,2794.0,2792.8,3.58055]
[1724452776915,3.57932,2793.9,2792.9,3.07158655]
[1724452777221,3.57904,2794.1,2792.9,0.07158655]
[1724452777507,3.57904,2794.1,2792.9,3.07158655]
[1724452777664,3.57889,2794.2,2792.9,3.0]
[1724452777665,3.57913,2794.0,2792.9,3.0]
[1724452778098,10.34688,2794.5,2792.9,3.48132854]
[1724452778368,3.57861,2794.4,2793.2,3.58003]
[1724452778613,10.34688,2794.5,2793.2,3.58003]
[1724452778781,13.92546,2794.5,2793.2,3.58003]
[1724452778980,13.92546,2794.5,2793.3,6.5638]
[1724452779310,3.57875,2794.3,2793.3,6.5638]
[1724452780596,3.57893,2794.2,2793.3,6.5638]
[1724452780994,3.57863,2794.4,2793.3,6.5638]
[1724452781205,3.57863,2794.4,2793.3,6.3638]
[1724452781380,7.15733,2794.4,2793.3,6.3638]
[1724452781821,3.57871,2794.3,2793.3,6.3638]
[1724452782166,3.57863,2794.4,2793.3,9.94377]
[1724452782387,3.57863,2794.4,2793.3,6.3638]
[1724452782388,3.57871,2794.3,2793.3,6.3638]
[1724452783397,3.57863,2794.4,2793.3,6.3638]
[1724452783398,7.15732,2794.4,2793.3,6.3638]
[1724452783789,3.57873,2794.3,2793.3,6.3638]
[1724452784211,3.57885,2794.2,2793.3,6.3638]
[1724452785417,3.57912,2794.0,2793.3,6.3638]
[1724452786185,6.7683,2794.5,2793.2,0.5598595]
[1724452786410,6.7683,2794.5,2793.2,3.0]
[1724452786726,6.5758,2794.3,2793.1,19.84]
[1724452786894,3.57968,2793.6,2793.1,19.84]
[1724452787432,7.15938,2793.6,2793.1,19.84]
[1724452787598,3.57968,2793.6,2793.1,19.84]
[1724452788102,6.5758,2793.7,2793.1,19.84]
[1724452788629,3.57914,2794.0,2792.8,6.5638]
[1724452788795,0.00496467,2793.7,2793.0,3.58027]
[1724452788983,0.00496467,2793.7,2793.0,7.16056]
[1724452789187,0.00496467,2793.7,2793.1,3.55994033]
[1724452789685,0.00496467,2793.7,2792.9,7.14044033]
[1724452789884,0.00496467,2793.7,2793.0,0.55994033]
[1724452790200,0.00496467,2793.7,2793.1,0.55994033]
[1724452790416,0.00496467,2793.7,2793.0,0.55994033]
[1724452790614,0.00496467,2793.7,2793.2,6.5638]
[1724452790820,0.00496467,2793.7,2793.2,10.70374033]
[1724452791129,0.00496467,2793.7,2793.3,3.57999]
[1724452791300,0.00496467,2793.7,2793.3,4.13993033]
[1724452791649,0.00496467,2793.7,2793.2,6.5638]
[1724452791800,0.00496467,2793.7,2793.2,7.12374033]
[1724452792002,0.00496467,2793.7,2793.3,0.55994033]
[1724452792199,0.00496467,2793.7,2793.0,0.55994033]
[1724452792387,0.00496467,2793.7,2793.1,0.55994033]
[1724452792587,0.00496467,2793.7,2793.2,0.55994033]
[1724452792814,0.00496467,2793.7,2793.0,0.55994033]
[1724452793041,0.00496467,2793.7,2793.2,10.43666417]
[1724452793205,0.00048087,2793.7,2793.3,4.80426794]
[1724452793405,6.4602,2794.8,2793.3,4.80426794]
[1724452793406,6.4602,2794.8,2793.9,3.57919]
[1724452793584,3.57775,2795.1,2794.0,3.55994033]
[1724452793784,3.57783,2795.0,2794.0,3.55994033]
[1724452794088,3.57775,2795.1,2794.0,3.55994033]
[1724452794089,3.57794,2794.9,2794.0,3.55994033]
[1724452794299,3.57794,2794.9,2793.8,3.55994033]
[1724452794524,3.57794,2794.9,2793.9,0.55994033]
[1724452794729,3.57794,2794.9,2793.8,3.0]
[1724452794730,3.57817,2794.8,2794.0,0.55994033]
[1724452795040,3.57841,2794.6,2793.8,3.55977888]
[1724452795237,6.4602,2794.8,2793.9,0.55977888]
[1724452795456,6.4602,2794.8,2793.8,4.13908888]
[1724452795654,6.4602,2794.8,2793.9,3.55971859]
[1724452797097,6.4602,2795.1,2794.1,3.57893]
[1724452797309,6.4602,2795.1,2794.1,10.38935]
[1724452797549,3.57756,2795.2,2794.1,10.38935]
[1724452797720,3.57756,2795.2,2794.1,7.37011859]
[1724452797902,3.57756,2795.2,2794.1,6.8104]
[1724452798298,7.15522,2795.2,2794.1,6.8104]
[1724452798544,3.57771,2795.1,2794.1,6.8104]
[1724452798705,3.57783,2795.0,2794.1,6.8104]
[1724452798908,3.57783,2795.0,2794.0,0.55971859]
[1724452799102,6.4602,2794.9,2793.9,3.55971859]
[1724452799403,6.4602,2794.9,2793.9,3.0]
[1724452799612,10.03819,2794.9,2793.9,3.55971859]
[1724452800386,6.4602,2794.9,2793.9,0.55971859]
[1724452800544,3.57838,2794.6,2793.4,7.37011859]
[1724452800738,3.57838,2794.6,2793.4,13.14851224]
[1724452800974,3.57838,2794.6,2793.5,0.55971859]
[1724452801261,6.4602,2794.7,2793.5,3.57962]
[1724452801262,10.03847,2794.7,2793.5,3.57962]
[1724452801422,10.03847,2794.7,2793.5,4.13933859]
[1724452801623,3.57855,2794.5,2793.4,9.56861959]
[1724452801822,3.57868,2794.4,2793.5,3.0]
[1724452802124,6.4602,2794.3,2793.3,6.57996]
[1724452802344,6.4602,2794.3,2793.4,1.24430208]
[1724452802857,6.4602,2794.3,2793.3,6.57996]
[1724452803527,6.4602,2794.3,2793.3,3.0]
[1724452803898,6.4602,2794.3,2793.4,1.24437739]
[1724452804022,6.4602,2794.3,2793.3,3.0]
[1724452804223,6.4602,2794.3,2793.3,0.55983902]
[1724452804473,6.4602,2794.3,2793.4,1.24432164]
[1724452804627,6.4602,2794.3,2793.4,3.0]
[1724452806325,6.4602,2794.3,2793.5,19.84]
[1724452809461,6.4602,2794.7,2793.7,6.8104]
[1724452809662,6.4602,2794.7,2793.7,10.38979]
[1724452809861,10.03841,2794.7,2793.8,4.24416542]
[1724452810116,10.03841,2794.7,2793.9,3.0]
[1724452810261,3.57847,2794.5,2793.9,19.84]
[1724452810467,3.57863,2794.4,2793.9,19.84]
[1724452810683,6.4602,2794.3,2793.9,19.84]
[1724452811213,3.62626417,2794.9,2793.9,19.84]
[1724452811377,6.4602,2794.8,2793.9,19.84]
[1724452812506,10.03828,2794.8,2793.9,19.84]
[1724452812730,6.4602,2794.8,2793.9,19.84]
[1724452812918,6.4602,2794.8,2794.0,3.57908]
[1724452813567,6.4602,2794.8,2793.9,19.84]
[1724452814416,6.4476,2795.2,2794.2,3.57877]
[1724452814617,10.02525,2795.2,2794.3,3.0]
[1724452814916,10.02525,2795.2,2794.1,0.74065969]
[1724452814917,10.02525,2795.2,2794.1,7.31954969]
[1724452815114,13.60289,2795.2,2794.2,1.24391046]
[1724452815295,10.02524,2795.2,2794.2,1.24391046]
[1724452816101,3.57775,2795.1,2794.2,1.24391046]
[1724452816431,3.57795,2794.9,2794.1,3.0]
[1724452816640,3.57795,2794.9,2794.0,3.0]
[1724452816786,3.57837,2794.6,2793.5,24.16031969]
[1724452816986,10.02615,2794.5,2793.5,19.84]
[1724452817226,10.02609,2794.5,2793.4,9.91955]
[1724452817396,6.4476,2794.5,2793.5,4.82395633]
[1724452817603,6.4476,2794.5,2793.5,5.44603032]
[1724452817798,6.4476,2794.5,2793.5,3.57971]
[1724452818642,6.4476,2794.5,2793.5,7.15931]
[1724452818834,6.4476,2794.5,2793.6,1.24420193]
[1724452819039,6.4476,2794.5,2793.6,4.82379193]
[1724452819246,6.4476,2794.5,2793.6,3.57959]
[1724452819542,6.4476,2794.5,2793.5,3.57965]
[1724452819706,6.4476,2794.5,2793.6,7.8237784]
[1724452819900,6.4476,2794.5,2793.6,3.0]
[1724452820106,7.450201,2794.5,2793.6,3.0]
[1724452821258,7.450201,2794.5,2793.7,19.84]
[1724452821415,11.028671,2794.5,2793.7,19.84]
[1724452821801,7.450201,2794.5,2793.7,19.84]
[1724452822034,6.4476,2794.5,2793.7,19.84]
[1724452823260,6.4476,2794.5,2793.7,23.41947]
[1724452823409,6.4476,2794.5,2793.8,1.24418168]
[1724452823609,6.4476,2794.5,2793.9,3.57915]
[1724452823823,6.4476,2794.5,2793.8,6.85111554]
[1724452823824,6.4476,2794.5,2793.8,4.86627417]
[1724452824408,6.4476,2794.5,2793.8,3.0]
[1724452824605,10.02606,2794.5,2793.8,3.0]
[1724452824816,10.02606,2794.5,2793.7,19.84]
[1724452825908,3.57865,2794.4,2793.7,19.84]
[1724452826134,3.62626417,2795.0,2793.6,19.84]
[1724452826135,6.2243,2794.7,2793.6,19.84]
[1724452826462,3.5781,2794.8,2793.6,19.84]
[1724452826463,6.2243,2794.2,2793.6,19.84]
[1724452828873,3.57852,2794.5,2793.6,19.84]
[1724452828874,6.2243,2794.0,2793.6,19.84]
[1724452829025,6.2243,2794.0,2793.2,27.28]
[1724452829225,6.2243,2794.0,2793.3,3.11102692]
[1724452829469,9.80382,2793.7,2793.2,19.84]
[1724452829665,6.2243,2793.7,2793.2,19.84]
[1724452831945,0.05615019,2793.6,2793.2,19.84]
[1724452832600,6.2243,2793.2,2792.7,19.84]
[1724452832887,6.2243,2793.2,2792.6,19.84]
[1724452833081,0.05447684,2793.1,2792.6,19.84]
[1724452833286,6.2243,2793.2,2792.6,19.84]
[1724452833493,9.80442,2793.2,2792.6,19.84]
[1724452833852,0.05403111,2793.1,2792.6,19.84]
[1724452835907,6.5221,2793.0,2792.6,19.84]
[1724452836209,0.05364193,2792.9,2792.6,19.84]
[1724452838391,0.05364193,2792.9,2792.1,19.84]
[1724452838392,6.5221,2792.7,2792.1,19.84]
[1724452838691,3.6799061,2792.9,2791.7,19.84]
[1724452838692,3.58132,2792.3,2791.7,19.84]
[1724452839005,0.05259648,2792.2,2791.7,19.84]
[1724452839236,0.05259648,2792.2,2791.8,0.07162312]
[1724452839421,6.5221,2792.5,2791.7,19.84]
[1724452839878,3.58077,2792.7,2790.9,0.56144107]
[1724452839879,3.58268,2791.2,2790.9,0.56144107]
[1724452840080,6.5221,2791.4,2790.4,0.1316437]
[1724452840081,10.10461,2791.4,2790.4,0.1316437]
[1724452840387,0.05244573,2791.3,2790.4,0.1316437]
[1724452840771,3.63509573,2791.3,2790.4,0.1316437]
[1724452841324,0.05244573,2791.3,2790.4,10.5354437]
[1724452841685,0.05244573,2791.3,2790.5,3.58355]
[1724452841893,6.5221,2791.4,2790.5,3.58355]
[1724452842109,0.05287982,2791.2,2790.6,3.0]
[1724452842319,0.05257822,2791.3,2790.6,3.0]
[1724452842523,0.05244309,2791.1,2790.4,3.1316437]
[1724452842672,0.05251066,2791.2,2790.4,3.1316437]
[1724452842874,0.05209877,2791.0,2790.4,0.1316437]
[1724452843125,0.05215179,2791.1,2790.4,0.1316437]
[1724452843273,0.05142295,2790.9,2790.4,0.1316437]
[1724452843491,0.05149055,2791.0,2790.4,0.1316437]
[1724452843734,0.05148648,2790.8,2790.4,0.1316437]
[1724452843875,0.0516188,2790.9,2790.4,0.1316437]
[1724452844076,0.05148361,2790.7,2790.4,0.1316437]
[1724452844335,0.05156338,2790.8,2790.4,0.1316437]
[1724452844629,0.05143751,2790.7,2790.4,0.1316437]
[1724452844996,3.58256,2791.3,2790.5,19.84]
[1724452845190,6.5221,2791.2,2790.5,19.84]
[1724452845406,6.57365694,2791.2,2790.5,19.84]
[1724452846670,6.5221,2791.2,2790.5,19.84]
[1724452848349,6.5221,2791.2,2790.5,23.42355]
[1724452848641,6.5221,2791.2,2790.6,3.0]
[1724452849315,6.5221,2791.7,2791.1,3.58276]
[1724452849514,6.5221,2791.7,2791.2,3.0]
[1724452849911,6.5221,2791.7,2791.1,3.0]
[1724452850351,6.5221,2791.7,2790.9,3.0]
[1724452850554,6.5221,2792.5,2791.3,3.58245]
[1724452850844,6.5221,2792.5,2791.5,3.5822]
[1724452851002,0.04498559,2792.4,2791.6,0.0716333]
[1724452851441,0.04498559,2792.4,2791.7,3.58198]
[1724452851659,0.04498559,2792.4,2791.8,3.58189]
[1724452852051,6.5221,2792.5,2791.8,3.58189]
[1724452852254,6.5221,2792.5,2791.6,6.58215]
[1724452853030,6.5221,2792.5,2791.6,3.0]
[1724452853126,10.10312,2792.5,2791.6,3.0]
[1724452853329,10.10312,2792.5,2791.3,3.0]
[1724452853330,6.3441,2792.4,2791.3,3.0]
[1724452854275,6.3441,2792.2,2791.3,3.0]
[1724452854425,6.3441,2792.2,2791.2,3.0]
[1724452854754,6.3441,2792.0,2791.2,3.0]
[1724452854965,0.04501454,2791.9,2791.1,3.0]
[1724452855267,6.3441,2791.8,2791.2,19.84]
[1724452855858,6.3441,2791.6,2791.2,19.84]
[1724452856378,0.04474406,2791.5,2791.2,19.84]
[1724452857157,6.3441,2791.4,2791.2,19.84]
[1724452857350,0.04457964,2791.3,2791.2,19.84]
[1724452857651,0.04457964,2791.3,2790.8,7.44]
[1724452857652,0.04457964,2791.3,2790.9,19.84]
[1724452858161,6.3441,2791.4,2790.6,12.46]
[1724452858162,6.3441,2791.4,2790.6,32.3]
[1724452858382,6.3441,2791.4,2790.6,19.84]
[1724452858383,6.3441,2791.3,2790.6,19.84]
[1724452858822,0.04420638,2791.2,2790.6,19.84]
[1724452859960,6.3441,2791.1,2790.6,19.84]
[1724452860365,6.3441,2791.1,2790.4,0.1316437]
[1724452860366,10.919587,2791.1,2790.4,0.1316437]
[1724452860527,6.3441,2791.0,2790.4,0.1316437]
[1724452862058,4.575487,2791.1,2790.4,0.1316437]
[1724452862059,9.92739,2790.8,2790.4,0.1316437]
[1724452862245,6.3441,2790.8,2790.4,0.1316437]
[1724452862479,3.58328,2790.8,2790.4,0.1316437]
[1724452862673,3.62702697,2790.9,2790.4,0.1316437]
[1724452862674,6.38758853,2790.7,2790.4,0.1316437]
[1724452863047,6.3441,2790.6,2790.4,0.1316437]
[1724452863383,10.92477285,2790.5,2790.4,0.1316437]
[1724452863579,14.55170614,2790.5,2790.4,0.1316437]
[1724452864384,15.10170614,2790.5,2790.4,0.1316437]
[1724452865157,14.55170614,2790.5,2790.4,0.1316437]
[1724452865339,6.38745329,2790.5,2790.4,0.1316437]
[1724452868941,0.04335329,2790.5,2790.4,0.1316437]
[1724452869269,6.3441,2790.8,2790.4,0.1316437]
[1724452869481,0.04277602,2790.5,2790.4,0.1316437]
[1724452869658,6.3441,2791.4,2790.4,3.7153337]
[1724452869860,6.3441,2791.4,2790.5,3.60521518]
[1724452870041,6.3441,2791.4,2790.6,3.58344]
[1724452870243,6.3441,2791.4,2790.7,0.07165847]
[1724452870493,6.3441,2791.4,2790.6,3.58344]
[1724452870649,6.3441,2791.4,2790.4,3.7152537]
[1724452870993,6.3441,2791.4,2790.7,3.5832]
[1724452871299,6.3441,2791.4,2790.5,26.42353]
[1724452871300,6.3441,2791.4,2790.6,4.14389478]
[1724452871682,6.3441,2791.4,2790.6,4.14383731]
[1724452871972,9.92655,2791.4,2790.6,0.56039731]
[1724452872104,9.92655,2791.4,2790.5,22.84]
[1724452872105,4.575235,2791.3,2790.5,22.84]
[1724452872276,6.3441,2791.4,2790.5,22.84]
[1724452872679,9.92662,2791.4,2790.5,22.84]
[1724452874016,3.58218,2791.6,2790.4,0.1316437]
[1724452874017,6.7713,2791.0,2790.4,0.1316437]
[1724452874177,0.67713,2790.9,2790.4,0.1316437]
[1724452876706,3.58226,2791.6,2790.5,3.58355]
[1724452876915,6.7713,2791.7,2790.4,0.1316437]
[1724452877083,6.7713,2791.5,2790.4,0.1316437]
[1724452877943,3.58278,2791.2,2790.4,0.1316437]
[1724452878121,6.5275,2791.1,2790.4,0.1316437]
[1724452878910,7.538528,2791.1,2790.4,0.1316437]
[1724452879464,6.5275,2791.1,2790.4,0.1316437]
[1724452880692,6.5275,2790.8,2790.4,0.1316437]
[1724452881032,3.58342,2790.7,2790.4,0.1316437]
[1724452881374,3.58346,2790.6,2790.4,0.1316437]
[1724452882322,3.58342,2790.7,2790.4,0.1316437]
[1724452882841,3.58358,2790.5,2790.4,0.1316437]
[1724452883130,6.5275,2790.5,2790.4,0.1316437]
[1724452885745,6.5275,2790.5,2790.0,21.1980417]
[1724452886421,10.11109,2790.5,2790.0,20.9480417]
[1724452887218,3.58371,2790.4,2790.0,20.9480417]
[1724452887415,3.58372,2790.4,2790.0,20.9480417]
[1724452887760,3.58391,2790.3,2790.0,20.9480417]
[1724452887943,6.5275,2790.2,2790.0,20.9480417]
[1724452889526,10.11112,2790.5,2790.0,20.9480417]
[1724452889729,6.5275,2790.5,2790.0,20.9480417]
[1724452890017,10.11113,2790.5,2790.0,20.9480417]
[1724452890334,3.58372,2790.4,2790.0,20.9480417]
[1724452890535,11.122243,2790.5,2790.0,20.9480417]
[1724452890846,3.5841,2790.1,2790.0,20.9480417]
[1724452891944,7.1682,2790.1,2790.0,20.9480417]
[1724452892428,3.5841,2790.1,2790.0,20.9480417]
[1724452892834,7.1682,2790.1,2790.0,20.9480417]
[1724452893158,10.1355,2790.1,2790.0,20.9480417]
[1724452893737,13.7196,2790.1,2790.0,20.9480417]
[1724452894164,10.1355,2790.1,2790.0,20.9480417]
[1724452894483,15.091554,2790.1,2790.0,20.9480417]
[1724452897450,11.507454,2790.1,2790.0,20.9480417]
[1724452897685,15.091554,2790.1,2790.0,20.9480417]
[1724452898247,18.675654,2790.1,2790.0,20.9480417]
[1724452898449,22.225654,2790.1,2790.0,20.9480417]
[1724452898738,25.809754,2790.1,2790.0,20.9480417]
[1724452898938,29.393854,2790.1,2790.0,6.38504196]
[1724452899181,25.809754,2790.1,2790.0,4.02e-06]
[1724452901056,6.5514,2790.0,2788.1,0.56086246]
[1724452901394,6.5514,2788.4,2787.7,0.1316437]
[1724452901536,10.13733,2788.7,2787.7,0.1316437]
[1724452901742,10.13733,2788.7,2787.8,6.7081]
[1724452902093,6.5514,2788.7,2787.8,6.7081]
[1724452902619,10.1373,2788.7,2787.8,6.7081]
[1724452903110,6.6262,2789.1,2787.9,19.84]
[1724452903294,6.6262,2789.1,2788.0,22.49481]
[1724452903502,10.2116,2789.1,2788.0,22.49481]
[1724452903866,3.58553,2789.0,2788.0,22.49481]
[1724452904071,6.6262,2788.9,2787.7,0.1316437]
[1724452904316,6.6262,2788.5,2787.7,0.1316437]
[1724452904521,3.58641,2788.4,2787.7,0.1316437]
[1724452904667,3.58641,2788.3,2787.7,0.1316437]
[1724452904873,3.58655,2788.2,2787.7,0.1316437]
[1724452905217,3.58638,2788.4,2787.7,0.1316437]
[1724452905771,3.58642,2788.3,2787.7,0.1316437]
[1724452905986,3.58667,2788.1,2787.7,0.1316437]
[1724452906190,6.6262,2788.5,2787.7,0.1316437]
[1724452906472,3.58705,2787.8,2787.7,0.1316437]
[1724452906589,7.1741,2787.8,2787.7,0.1316437]
[1724452907207,3.58705,2787.8,2787.7,0.1316437]
[1724452907836,7.1741,2787.8,2787.7,0.1316437]
[1724452908288,3.58705,2787.8,2787.7,0.1316437]
[1724452909031,3.58704,2787.9,2787.7,0.1316437]
[1724452909823,3.58705,2787.8,2787.7,0.1316437]
[1724452910193,8.554129,2787.8,2787.7,0.1316437]
[1724452911093,15.180329,2787.8,2787.7,0.1316437]
[1724452911332,18.730329,2787.8,2787.7,0.1316437]
[1724452911511,27.17389145,2787.8,2787.7,0.1316437]
[1724452912398,30.76094145,2787.8,2787.7,0.1316437]
[1724452912741,18.730329,2787.8,2787.7,0.1316437]
[1724452913453,3.58692,2788.0,2787.7,0.1316437]
[1724452913753,3.5868,2788.0,2787.7,0.1316437]
[1724452914326,9.9935,2788.2,2787.7,0.1316437]
[1724452914327,6.4069,2788.2,2787.7,0.1316437]
[1724452914543,3.58668,2788.1,2787.7,0.1316437]
[1724452915100,11.26341245,2788.5,2787.7,0.1316437]
[1724452915101,3.58705,2787.8,2787.7,0.1316437]
[1724452915297,7.532805,2787.8,2787.7,0.1316437]
[1724452915696,6.4069,2787.9,2787.7,0.1316437]
[1724452915941,3.58684,2788.0,2787.7,0.1316437]
[1724452916249,3.58658,2788.2,2787.7,0.1316437]
[1724452916602,3.58676,2788.1,2787.7,0.1316437]
[1724452917348,3.58658,2788.2,2787.7,0.1316437]
[1724452917349,3.58663,2788.2,2787.7,0.1316437]
[1724452917514,3.5869,2788.0,2787.7,0.1316437]
[1724452917847,3.58693,2787.9,2787.7,0.1316437]
[1724452918143,3.58705,2787.8,2787.7,0.1316437]
[1724452919103,0.94069,2788.2,2787.7,0.1316437]
[1724452919104,4.52727,2788.2,2787.7,0.1316437]
[1724452919323,3.58658,2788.2,2787.7,0.1316437]
[1724452919499,3.58668,2788.1,2787.7,0.1316437]
[1724452919704,3.58658,2788.2,2787.7,0.1316437]
[1724452919705,3.5868,2788.0,2787.7,0.1316437]
[1724452920655,7.1741,2787.8,2787.7,0.1316437]
[1724452922707,7.2103063,2787.8,2787.7,0.1316437]
[1724452922932,0.0362063,2787.8,2787.7,0.1316437]
[1724452923350,3.58634,2788.4,2787.7,0.1316437]
[1724452923652,0.03658497,2787.8,2787.7,0.1316437]
[1724452923839,3.58667,2788.1,2787.7,0.80718807]
[1724452924044,3.58656,2788.2,2787.7,0.80718807]
[1724452924245,0.03359645,2788.0,2787.7,0.1316437]
[1724452924551,0.0337385,2787.9,2787.7,0.1316437]
[1724452924705,3.6206885,2787.9,2787.7,0.1316437]
[1724452925656,3.58705,2787.8,2787.7,0.1316437]
[1724452925820,3.6208413,2787.8,2787.7,0.1316437]
[1724452926161,7.2078913,2787.8,2787.7,0.1316437]
[1724452926313,8.21066543,2787.8,2787.7,0.1316437]
[1724452926513,26.06112788,2787.8,2787.7,0.1316437]
[1724452926727,26.61112788,2787.8,2787.7,0.1316437]
[1724452927068,30.19817788,2787.8,2787.7,3.7e-06]
[1724452927285,3.58868,2786.6,2785.8,6.6238]
[1724452927411,6.4069,2786.7,2785.6,0.74065969]
[1724452927608,3.58887,2786.4,2785.7,4.0]
[1724452927833,3.58886,2786.4,2785.7,4.0]
[1724452928033,0.03477763,2786.3,2785.7,4.0]
[1724452928285,0.0033588,2786.3,2785.8,0.4]
[1724452928420,0.03115393,2786.3,2785.9,6.6238]
[1724452928618,3.58838,2786.8,2785.9,6.6238]
[1724452928619,3.58847,2786.7,2785.9,6.6238]
[1724452928823,0.03929483,2786.6,2785.9,6.6238]
[1724452929061,3.62790483,2786.6,2785.9,6.6238]
[1724452929223,3.589,2786.3,2785.5,6.6238]
[1724452929561,3.58894,2786.4,2785.6,0.66238]
[1724452929855,7.17731,2786.6,2785.6,0.66238]
[1724452930153,3.58862,2786.6,2785.6,0.66238]
[1724452930522,9.99526,2786.8,2785.6,4.25224]
[1724452931345,9.99526,2786.8,2785.8,6.6238]
[1724452931588,3.58895,2786.4,2785.4,6.6238]
[1724452931773,6.4069,2786.7,2785.4,6.6238]
[1724452932060,3.58875,2786.5,2785.5,0.96238]
[1724452933451,3.58886,2786.4,2785.5,0.96238]
[1724452933668,3.58888,2786.4,2785.5,0.96238]
[1724452933849,3.58875,2786.5,2785.5,0.96238]
[1724452934238,3.58886,2786.4,2785.5,0.96238]
[1724452934441,3.58875,2786.5,2785.6,0.758618]
[1724452934665,4.2293,2786.6,2785.6,0.758618]
[1724452935342,3.58875,2786.5,2785.6,0.758618]
[1724452935543,0.64069,2786.6,2785.6,0.758618]
[1724452935751,9.99542,2786.7,2785.6,0.758618]
[1724452936270,3.58874,2786.5,2785.6,0.758618]
[1724452936972,3.58905,2786.3,2785.6,0.758618]
[1724452937177,3.58874,2786.5,2785.6,0.758618]
[1724452937870,3.58893,2786.4,2785.6,0.758618]
[1724452938059,3.58849,2786.7,2785.8,6.8999]
[1724452938254,6.536,2787.0,2785.8,10.48952]
[1724452938255,3.5883,2786.9,2785.8,10.48952]
[1724452938580,3.58893,2786.4,2785.8,6.8999]